{"text_format":"1","workbook":"xlsx","n_sheets":3,"sheets":["Tabulky","Pavouk chlapci","Pořadí"],"not_rendered":{"charts":0,"images":1,"macros":1,"external_links":0,"defined_names":4,"comments":0,"pivot_tables":0},"unopened":[],"bounds":{"document_bytes":16777216,"sheet_cells":100000,"rows_first":2000,"rows_last":500,"rows_between":2000,"halvings":0,"cell_chars":16384,"cell_head_chars":4096},"cells_cut":0,"cells_raw":0,"read":"whole","date_system":"1900"}

{"sheet":"Tabulky","index":0,"n_rows":69,"n_cols":9,"rows_kept":69,"cut":false,"hidden":false,"merged":[]}
[]
["Skupina A - kurt ",null,"Fejka Štěpán","Motal David","Ulč Martin","Coxon Ben",0,"Pořadí","Počet vítězství"]
["A1","Fejka Štěpán",null,"4-1","4-0","4-0",0,"1.","3"]
["A2","Motal David","1-4",null,"4-0","4-1",0,"2.","2"]
["A3","Ulč Martin","0-4","0-4",null,"1-4",0,"4.","0"]
["A4","Coxon Ben","0-4","1-4","4-1",null,0,"3.","1"]
[]
["Skupina B -  kurt ",null,"Zapský Tobiáš","Vondráček Samuel Cristian","Raev David","Bervid Wiliam","Janoušek Šimon","Pořadí","Počet vítězství"]
["B1","Zapský Tobiáš",null,"4-1","4-0","4-0","4-2","1.","4"]
["B2","Vondráček Samuel Cristian","1-4",null,"4-3","1-4","0-4","4.","1"]
["B3","Raev David","0-4","3-4",null,"0-4","0-4","5.","0"]
["B4","Bervid Wiliam","0-4","4-1","4-0",null,"0-4","3.","2"]
["B5","Janoušek Šimon","2-4","4-0","4-0","4-0",null,"2.","3"]
[]
["Skupina C - kurt ",null,"Jaroš Vojta","Řehoř Benjamín","Miketa Matias","Bezouška Antonín","Wollner Filip","Pořadí","Počet vítězství"]
["C1","Jaroš Vojta",null,"4-2","4-0","4-0","4-2","1.","4"]
["C2","Řehoř Benjamín","2-4",null,"4-2","4-1","4-3","2.","3"]
["C3","Miketa Matias","0-4","2-4",null,"4-0","3-4","4.","1"]
["C4","Bezouška Antonín","0-4","1-4","0-4",null,"1-4","5.","0"]
["C5","Wollner Filip","2-4","3-4","4-3","4-1",null,"3.","2"]
[]
["Skupina D - kurt ",null,"Štěpánek Adam","Horáček Filip","Mikeš David","Michna Gabriel","Hampl Viktor","Pořadí","Počet vítězství"]
["D1","Štěpánek Adam",null,"4-0","4-0","0-4","4-0","2,","3"]
["D2","Horáček Filip","0-4",null,"4-2","0-4","4-1","3.","2"]
["D3","Mikeš David","0-4","2-4",null,"1-4","4-3","4.","1"]
["D4","Michna Gabriel","4-0","4-0","4-1",null,"4-0","1.","4"]
["D5","Hampl Viktor","0-4","0-4","3-4","0-4",null,"5.","0"]
[]
["Skupina E - kurt",null,0,0,0,0,0,"Pořadí","Počet vítězství"]
["E1",0,null,0,0,0,0]
["E2",0,null,null,0,0,0]
["E3",0,null,null,null,0,0]
["E4",0,null,null,null,null,0]
["E5",0]
[]
["Skupina F - kurt",null,0,0,0,0,0,"Pořadí","Počet vítězství"]
["F1",0,null,0,0,0,0]
["F2",0,null,null,0,0,0]
["F3",0,null,null,null,0,0]
["F4",0,null,null,null,null,0]
["F5",0]
[]
["Skupina G - kurt ",null,0,0,0,0,0,"Pořadí","Počet vítězství"]
["G1",0,null,0,0,0,0]
["G2",0,null,null,0,0,0]
["G3",0,null,null,null,0,0]
["G4",0,null,null,null,null,0]
["G5",0]
[]
["Skupina H - kurt ",null,0,0,0,0,0,"Pořadí","Počet vítězství"]
["H1",0,null,0,0,0,0]
["H2",0,null,null,0,0,0]
["H3",0,null,null,null,0,0]
["H4",0,null,null,null,null,0]
["H5",0]
[]
["Skupina I - kurt ",null,0,0,0,0,0,"Pořadí","Počet vítězství"]
["I1",0,null,0,0,0,0]
["I2",0,null,null,0,0,0]
["I3",0,null,null,null,0,0]
["I4",0,null,null,null,null,0]
["I5",0]
[]
["Skupina J - kurt ",null,0,0,0,0,0,"Pořadí","Počet vítězství"]
["J1",0,null,0,0,0,0]
["J2",0,null,null,0,0,0]
["J3",0,null,null,null,0,0]
["J4",0,null,null,null,null,0]
["J5",0]

{"sheet":"Pavouk chlapci","index":1,"n_rows":32,"n_cols":3,"rows_kept":32,"cut":false,"hidden":false,"merged":[]}
[]
[]
[]
["Fejka Štepán "]
[]
[null,"Fejka Štěpán"]
[null,"4-0"]
["Janoušek Šimon"]
[]
[null,null,"Fejka Štěpán"]
[null,null,"4-1"]
["Řehoř Banjamin"]
[]
[null,"Michna Gabriel"]
[null,"4-2"]
["Michna Gabriel"]
[]
[null,null,"Fejka Štěpán"]
[null,null,"4-0"]
["Jaroš Vojta"]
[]
[null,"Štěpánek Adam"]
[null,"4-3"]
["Štěpánek Adam"]
[]
[null,null,"Štěpánek Adam"]
[null,null,"4-1"]
["Motal David"]
[]
[null,"Zapský Tobiáš"]
[null,"4-1"]
["Zapský Tobiáš"]

{"sheet":"Pořadí","index":2,"n_rows":60,"n_cols":7,"rows_kept":60,"cut":false,"hidden":false,"merged":[[0,0,0,6]]}
["POŘADÍ - SPARTA HEAD BABYTENIS TOUR LÉTO 2020 - CHLAPCI"]
[]
[]
[]
[]
[]
[]
[]
[]
[]
[]
[]
[]
[]
[]
[]
[]
[]
[]
[]
[]
[]
[]
["Pořadí","Příjmení","1. turnaj","2. turnaj","3. turnaj","Masters","Celkem"]
["1.","Fejka Štěpán",300,null,null,null,{"$f":"SUM(C25:F25)","v":300}]
["2.","Štěpánek Adam",250,null,null,null,{"$f":"SUM(C26:F26)","v":250}]
["3.-4.","Michna Gabriel",200,null,null,null,{"$f":"SUM(C27:F27)","v":200}]
[null,"Zapský T",200,null,null,null,{"$f":"SUM(C28:F28)","v":200}]
["5.-8.","Janoušek Šimon",100,null,null,null,{"$f":"SUM(C29:F29)","v":100}]
[null,"Řehoř Benjamin",100,null,null,null,{"$f":"C30+D30","v":100}]
[null,"Jaroš Vojta",100,null,null,null,{"$f":"SUM(C31:F31)","v":100}]
[null,"Motal David",100,null,null,null,{"$f":"SUM(C32:F32)","v":100}]
["9.-12.","Coxon Ben",20,null,null,null,{"$f":"C33+D33","v":20}]
[null,"Bervid Wiliam",20,null,null,null,{"$f":"SUM(C34:F34)","v":20}]
[null,"Wollner Filip",20,null,null,null,{"$f":"SUM(C35:F35)","v":20}]
[null,"Horáček Filip",20,null,null,null,{"$f":"SUM(C36:F36)","v":20}]
["13.-16.","Ulč Martin",10,null,null,null,{"$f":"C37+D37","v":10}]
[null,"Vondráček Samuel Cristian",10,null,null,null,{"$f":"SUM(C38:F38)","v":10}]
[null,"Miketa Matias",10,null,null,null,{"$f":"SUM(C39:F39)","v":10}]
[null,"Mikeš David",10,null,null,null,{"$f":"SUM(C40:F40)","v":10}]
["17.-19.","Raev David",5,null,null,null,{"$f":"SUM(C41:F41)","v":5}]
[null,"Bezouška Antonín",5,null,null,null,{"$f":"C42+D42","v":5}]
[null,"Hampl Viktor",5,null,null,null,{"$f":"C43+D43","v":5}]
[null,null,null,null,null,null,{"$f":"C44+D44","v":0}]
[null,null,null,null,null,null,{"$f":"SUM(C45:F45)","v":0}]
[null,null,null,null,null,null,{"$f":"C46+D46","v":0}]
[null,null,null,null,null,null,{"$f":"C47+D47","v":0}]
[null,null,null,null,null,null,{"$f":"SUM(C48:F48)","v":0}]
[null,null,null,null,null,null,{"$f":"SUM(C49:F49)","v":0}]
[null,null,null,null,null,null,{"$f":"C50+D50","v":0}]
[null,null,null,null,null,null,0]
[null,null,null,null,null,null,0]
[null,null,null,null,null,null,0]
[null,null,null,null,null,null,0]
[null,null,null,null,null,null,0]
[null,null,null,null,null,null,0]
[null,null,null,null,null,null,0]
[null,null,null,null,null,null,0]
[null,null,null,null,null,null,0]
[null,null,null,null,null,null,0]